bitfinex-derivatives/quotes_ETHF0:USTF0_20241013
["timestamp","ask_amount","ask_price","bid_price","bid_amount"]
[1728839261596,0.046,2455.8,2455.7,4.10758791]
[1728839261806,6.35692491,2456.5,2455.7,4.10758791]
[1728839261807,3.2078,2456.5,2455.7,13.77232791]
[1728839261994,3.61494,2456.5,2456.3,0.40716]
[1728839263595,3.2078,2456.5,2456.3,0.40716]
[1728839263797,3.61494,2456.5,2456.3,0.40716]
[1728839264000,3.61494,2456.5,2456.0,6.0678]
[1728839264001,3.2078,2456.5,2456.4,0.40716]
[1728839264698,3.61494,2456.5,2456.3,0.40716]
[1728839265093,3.61494,2456.5,2456.0,7.08584]
[1728839265094,3.2078,2456.5,2456.0,6.0678]
[1728839265305,3.2078,2456.5,2456.4,0.40716]
[1728839267302,6.55300766,2456.6,2456.2,0.5935]
[1728839267507,6.96013766,2456.6,2456.5,0.40714]
[1728839267705,3.75233766,2456.6,2456.5,0.40714]
[1728839268409,3.34520766,2456.6,2456.5,0.40714]
[1728839269203,3.34520766,2456.6,2456.3,3.61496]
[1728839269403,2.00565766,2456.5,2456.4,0.40716]
[1728839269796,1.59850766,2456.5,2456.3,3.2078]
[1728839270107,1.47210692,2456.4,2456.3,3.61496]
[1728839271398,1.06494692,2456.4,2456.3,3.61496]
[1728839271708,1.47210692,2456.4,2456.3,3.61496]
[1728839272008,1.47210692,2456.4,2456.3,3.2078]
[1728839272009,2.79210692,2456.4,2456.3,3.2078]
[1728839272308,6.86330692,2456.4,2456.3,3.2078]
[1728839272497,0.40722,2456.1,2455.9,1.82223]
[1728839272807,0.40724,2455.9,2455.8,0.5969]
[1728839273006,0.40724,2455.9,2455.7,3.61506]
[1728839273007,1.72724,2455.9,2455.7,3.61506]
[1728839273199,2.30136,2455.8,2455.7,3.2078]
[1728839273401,2.30136,2455.8,2455.6,0.40728]
[1728839274304,1.8941,2455.8,2455.7,0.40727]
[1728839274500,1.8941,2455.8,2455.5,0.5969]
[1728839274805,1.32,2455.9,2455.7,1.32]
[1728839275000,1.72724,2455.9,2455.8,0.40726]
[1728839275400,1.32,2455.9,2455.8,0.40726]
[1728839275597,2.62397692,2456.0,2455.8,0.40726]
[1728839275803,2.62397692,2456.0,2455.5,3.4569]
[1728839275804,1.1518,2456.0,2455.5,3.4569]
[1728839276007,1.55902,2456.0,2455.8,0.40724]
[1728839276206,1.55902,2456.0,2455.5,3.4569]
[1728839276207,1.1518,2456.0,2455.9,0.98424]
[1728839276401,1.1518,2456.0,2455.9,0.577]
[1728839276402,1.55902,2456.0,2455.9,0.577]
[1728839277610,0.97292,2456.0,2455.9,0.577]
[1728839278114,0.5657,2456.0,2455.9,0.98424]
[1728839278412,0.97292,2456.0,2455.9,0.98424]
[1728839278712,0.97292,2456.0,2455.9,0.577]
[1728839279203,0.5657,2456.0,2455.9,0.98424]
[1728839279401,1.06494692,2456.1,2456.0,0.40722]
[1728839279605,2.04214692,2456.2,2456.1,0.40721]
[1728839279805,1.63494692,2456.2,2456.0,1.01651]
[1728839280006,0.40721,2456.1,2456.0,1.01651]
[1728839281104,2.04214692,2456.2,2456.1,0.40721]
[1728839281301,0.40721,2456.1,2456.0,1.01651]
[1728839283520,1.63494692,2456.2,2455.9,0.98423]
[1728839283521,0.40722,2456.0,2455.9,0.98423]
[1728839284716,1.47216692,2456.1,2456.0,0.40722]
[1728839284916,0.40722,2456.1,2456.0,0.40722]
[1728839285211,1.63494692,2456.2,2455.9,0.98423]
[1728839285212,0.40722,2456.0,2455.9,0.98423]
[1728839286318,4.072,2456.0,2455.8,0.40725]
[1728839286518,0.40724,2455.9,2455.8,0.40725]
[1728839287418,0.40723,2456.0,2455.9,0.40723]
[1728839287816,0.40723,2456.0,2455.7,3.2078]
[1728839287817,4.072,2456.0,2455.7,3.2078]
[1728839288019,0.40724,2455.9,2455.8,0.40724]
[1728839289419,0.40724,2455.9,2455.7,3.2078]
[1728839289620,0.40724,2455.9,2455.8,0.40726]
[1728839290021,1.06494692,2456.1,2455.7,3.2078]
[1728839290215,0.40726,2455.8,2455.7,3.2078]
[1728839290917,0.40726,2455.8,2455.7,3.61507]
[1728839291310,0.40726,2455.9,2455.7,3.61507]
[1728839291519,1.06494692,2456.0,2455.7,3.61507]
[1728839291720,0.40724,2455.9,2455.8,0.40726]
[1728839292419,0.40724,2455.9,2455.7,3.61506]
[1728839292919,0.40724,2455.9,2455.8,0.40726]
[1728839293117,1.06494692,2456.0,2455.9,0.40724]
[1728839293321,1.47216692,2456.0,2455.9,0.40724]
[1728839293513,1.06494692,2456.0,2455.9,0.40724]
[1728839295623,1.06494692,2456.0,2455.9,0.53455492]
[1728839296224,1.06494692,2456.0,2455.9,1.04381102]
[1728839296528,1.59850766,2456.0,2455.9,1.04381102]
[1728839297720,1.59850766,2456.0,2455.9,1.04382137]
[1728839297910,1.59850766,2456.0,2455.9,2.36382137]
[1728839298725,1.59850766,2456.0,2455.9,1.72724]
[1728839299029,1.59850766,2456.0,2455.9,2.36382017]
[1728839299220,1.59850766,2456.0,2455.9,2.95832017]
[1728839302617,1.59850766,2456.0,2455.9,2.95832184]
[1728839302817,1.59850766,2456.0,2455.9,2.9583285]
[1728839303729,2.00572766,2456.0,2455.9,2.9583285]
[1728839304322,1.59850766,2456.0,2455.9,2.9583285]
[1728839306726,1.59850766,2456.0,2455.9,2.95833372]
[1728839308124,1.06735076,2456.0,2455.9,6.82680298]
[1728839308331,1.06735076,2456.1,2456.0,0.40722]
[1728839308525,1.06735076,2456.1,2456.0,5.77532298]
[1728839308827,1.06735076,2456.1,2456.0,6.33462298]
[1728839310018,1.06735076,2456.1,2456.0,11.59419428]
[1728839310225,1.06735076,2456.2,2456.1,0.40721]
[1728839310428,1.06735076,2456.2,2456.1,3.38223142]
[1728839310629,1.59850766,2456.3,2456.1,3.38223142]
[1728839310630,1.06735076,2456.3,2456.2,0.40719]
[1728839310926,2.91850766,2456.4,2456.2,0.8401701]
[1728839311133,1.59850766,2456.3,2456.2,0.40719]
[1728839311323,2.91850766,2456.4,2456.3,0.40717]
[1728839311531,1.32,2456.4,2456.3,1.04365326]
[1728839312434,2.92068529,2456.4,2456.3,1.04365326]
[1728839313130,1.32,2456.4,2456.3,0.63648326]
[1728839313436,1.72716,2456.4,2456.3,0.12729665]
[1728839313633,2.30896,2456.4,2456.3,0.12729665]
[1728839314428,4.44020491,2456.4,2456.2,0.40718]
[1728839314622,2.92085219,2456.3,2456.2,0.40718]
[1728839314829,2.92085219,2456.3,2456.2,0.53448056]
[1728839315536,2.92085219,2456.3,2456.2,1.04368289]
[1728839318431,1.60085219,2456.3,2456.2,1.04368289]
[1728839318634,1.60085219,2456.3,2456.2,1.04367579]
[1728839319933,2.92085219,2456.3,2456.2,1.04367579]
[1728839322235,2.92085219,2456.3,2456.2,0.63649579]
[1728839322438,3.32802219,2456.3,2456.2,0.63649579]
[1728839322631,3.32802219,2456.3,2456.2,0.63649836]
[1728839322840,3.32802219,2456.3,2456.2,0.63651566]
[1728839324042,3.32802219,2456.3,2456.2,1.04370566]
[1728839325041,3.32802219,2456.3,2456.2,0.63651566]
[1728839325241,3.32802219,2456.3,2456.2,1.04370566]
[1728839326344,2.92085219,2456.3,2456.2,0.5344936]
[1728839326648,2.92085219,2456.3,2456.2,1.4473036]
[1728839326649,1.06697344,2456.3,2456.2,1.4473036]
[1728839326845,1.60085219,2456.4,2456.3,0.40717]
[1728839326846,1.06697344,2456.4,2456.3,0.40717]
[1728839327043,1.06697344,2456.4,2456.3,5.6134736]
[1728839327345,1.06697344,2456.4,2456.3,6.12268801]
[1728839327545,1.06697344,2456.4,2456.3,10.19388801]
[1728839327745,1.06697344,2456.5,2456.4,0.40716]
[1728839327939,1.06697344,2456.5,2456.4,1.04367801]
[1728839328244,1.06697344,2456.5,2456.4,1.59257801]
[1728839329641,1.06697344,2456.5,2456.4,1.59256298]
[1728839329849,1.06697344,2456.5,2456.4,2.91256298]
[1728839330945,1.06697344,2456.5,2456.4,2.40334905]
[1728839331152,1.06697344,2456.5,2456.4,2.91250567]
[1728839331648,1.06697344,2456.5,2456.4,1.59250567]
[1728839331850,2.38697344,2456.5,2456.4,1.08334905]
[1728839332238,1.06697344,2456.5,2456.4,1.08334905]
[1728839333746,1.06697344,2456.6,2456.4,2.50535185]
[1728839333947,1.06697344,2456.6,2456.5,1.85442719]
[1728839334248,1.06697344,2456.7,2456.6,0.40712]
[1728839334442,1.06602601,2456.8,2456.6,4.65508719]
[1728839334648,1.06602601,2456.8,2456.7,0.40711]
[1728839334846,2.38602601,2456.8,2456.7,0.40711]
[1728839336858,1.32,2456.8,2456.7,0.40711]
[1728839338346,2.38598513,2456.8,2456.7,0.40711]
[1728839338859,2.38598513,2456.8,2456.7,0.94991]
[1728839339954,2.38598513,2456.8,2456.7,0.40711]
[1728839340155,2.38598513,2456.8,2456.4,3.14210969]
[1728839340354,1.32,2456.5,2456.4,2.01486969]
[1728839340552,1.32,2456.5,2456.4,2.65129169]
[1728839341254,1.72714,2456.5,2456.4,2.24413169]
[1728839341451,5.3912,2456.5,2456.4,1.18609409]
[1728839341651,5.3912,2456.5,2456.4,1.05880969]
[1728839341847,1.32,2456.5,2456.4,1.46596969]
[1728839342861,1.86,2456.5,2456.4,0.40716]
[1728839344355,2.26714,2456.5,2456.4,0.40716]
[1728839344556,2.26714,2456.5,2456.3,4.93496]
[1728839344756,1.86,2456.5,2456.3,4.5278]
[1728839344960,1.86,2456.5,2456.4,0.40716]
[1728839346167,1.86,2456.5,2456.4,0.53445148]
[1728839346364,1.86,2456.5,2456.4,0.53445269]
[1728839346567,1.86,2456.5,2456.4,0.40716]
[1728839346959,1.1053,2456.7,2456.6,0.40712]
[1728839347359,0.5748,2456.7,2456.6,1.72712]
[1728839347763,0.5748,2456.7,2456.6,1.85439617]
[1728839347959,0.5748,2456.7,2456.6,1.72712]
[1728839348267,0.5627,2456.8,2456.7,0.40711]
[1728839348467,2.4498,2457.0,2456.9,0.40707]
[1728839350862,2.85686,2457.0,2456.8,0.544]
[1728839351066,2.85686,2457.0,2456.8,0.95108]
[1728839351568,2.85686,2457.0,2456.8,0.544]
[1728839351768,2.4498,2457.0,2456.9,0.40707]
[1728839352762,1.1298,2457.0,2456.9,1.72707]
[1728839353868,3.51579595,2457.0,2456.8,1.864]
[1728839354068,2.79306595,2456.9,2456.7,1.32]
[1728839354270,0.5313,2456.8,2456.7,1.7271]
[1728839354475,0.5313,2456.8,2456.7,2.36347417]
[1728839354879,0.5313,2456.8,2456.7,1.7271]
[1728839355173,2.38599595,2456.9,2456.8,0.40709]
[1728839355174,1.06599595,2456.9,2456.8,0.40709]
[1728839355362,2.93909595,2457.0,2456.8,0.65367291]
[1728839355568,2.93909595,2457.0,2456.9,0.40707]
[1728839355964,1.61909595,2457.0,2456.9,0.40707]
[1728839356167,1.06599595,2457.0,2456.9,1.72707]
[1728839356471,1.06599595,2457.0,2456.9,1.8543341]
[1728839356773,1.06599595,2457.0,2456.9,1.72707]
[1728839357070,1.06599595,2457.0,2456.9,1.85433424]
[1728839357270,3.48899595,2457.1,2456.9,1.32]
[1728839357472,3.48899595,2457.1,2457.0,0.40706]
[1728839357768,2.16899595,2457.1,2457.0,0.96126]
[1728839358073,3.48899595,2457.1,2457.0,0.96126]
[1728839360373,2.16899595,2457.1,2457.0,0.96126]
[1728839360671,2.66498987,2457.5,2457.1,1.01761]
[1728839360672,1.06599595,2457.5,2457.1,1.01761]
[1728839360867,1.06599595,2457.5,2457.4,1.72699]
[1728839361072,1.06599595,2457.6,2457.5,0.40697]
[1728839361267,2.16479595,2457.7,2457.5,1.32]
[1728839361475,2.16479595,2457.7,2457.6,0.40696]
[1728839362171,2.16479595,2457.7,2457.6,1.72696]
[1728839362374,1.0988,2457.7,2457.6,1.72696]
[1728839368072,2.92429595,2457.9,2457.8,0.40692]
[1728839368073,1.60429595,2457.9,2457.8,0.40692]
[1728839368269,1.60429595,2457.9,2457.8,1.72692]
[1728839368270,1.1124,2457.9,2457.8,1.72692]
[1728839368870,1.1124,2457.9,2457.8,1.32]
[1728839369078,1.51931,2457.9,2457.8,1.32]
[1728839369673,1.1124,2457.9,2457.8,1.32]
[1728839371874,1.1124,2457.9,2457.6,3.7809]
[1728839372181,2.4324,2457.9,2457.8,1.72692]
[1728839373774,1.32,2458.0,2457.9,0.4069]
[1728839373980,2.434,2458.0,2457.9,1.7269]
[1728839375577,0.5306,2458.1,2457.9,1.32]
[1728839375776,0.93748,2458.1,2458.0,1.32]
[1728839375971,1.8506,2458.1,2458.0,1.32]
[1728839376586,2.25747,2458.1,2458.0,1.32]
[1728839377090,0.5306,2458.1,2458.0,1.72689]
[1728839379771,2.25747,2458.1,2457.9,1.7269]
[1728839379971,2.25747,2458.1,2457.9,1.32]
[1728839380175,1.8506,2458.1,2458.0,0.40689]
[1728839380678,1.8506,2458.1,2457.9,1.32]
[1728839380981,2.25748,2458.1,2457.9,1.7269]
[1728839381175,1.8506,2458.1,2457.9,1.7269]
[1728839381380,0.5306,2458.1,2458.0,1.72689]
[1728839381583,2.25747,2458.1,2458.0,1.32]
[1728839382280,1.8506,2458.1,2458.0,1.32]
[1728839382483,1.8506,2458.1,2458.0,1.72689]
[1728839383075,0.5434,2458.4,2458.0,1.32]
[1728839383281,1.0862,2458.4,2458.3,1.72684]
[1728839388488,1.49302,2458.4,2458.3,1.32]
[1728839388685,1.0862,2458.4,2458.3,1.72684]
[1728839394793,0.5428,2458.4,2458.3,1.72684]
[1728839400993,0.40678,2458.7,2458.5,0.4068]
[1728839401189,0.5395,2458.6,2458.5,0.4068]
[1728839401391,1.06599595,2458.8,2458.4,0.5649]
[1728839401689,0.5395,2458.9,2458.8,0.40676]
[1728839402494,0.5395,2458.9,2458.8,0.97166]
[1728839402792,0.5395,2458.9,2458.8,2.29166]
[1728839404292,0.546,2459.0,2458.9,0.40674]
[1728839404489,0.5456,2459.1,2459.0,0.40673]
[1728839404683,0.5456,2459.1,2459.0,1.72673]
[1728839404893,1.06599595,2459.2,2459.1,0.40671]
[1728839405091,1.06599595,2459.2,2459.1,1.72671]
[1728839405494,2.14519595,2459.3,2459.2,0.40669]
[1728839405795,2.14519595,2459.3,2459.2,1.8926]
[1728839405999,2.55187595,2459.3,2459.2,1.8926]
[1728839406496,2.55187595,2459.3,2459.2,2.4267]
[1728839406693,2.55187595,2459.3,2458.1,4.51439321]
[1728839406694,0.40674,2458.9,2458.6,3.3028]
[1728839406889,1.32,2459.1,2458.8,1.32]
[1728839407192,0.40673,2459.0,2458.8,1.72675]
[1728839407392,0.40673,2459.0,2458.8,0.40675]
[1728839407393,0.5281,2458.9,2458.8,0.40675]
[1728839407598,0.5281,2458.9,2458.7,1.94686]
[1728839407792,0.5281,2458.9,2458.8,0.40676]
[1728839407993,0.5281,2458.9,2458.8,1.32]
[1728839408188,0.93484,2458.9,2458.8,1.32]
[1728839408489,0.5281,2458.9,2458.8,1.32]
[1728839408692,0.5281,2458.9,2458.8,1.72676]
[1728839409293,0.93484,2458.9,2458.8,1.32]
[1728839409492,0.5281,2458.9,2458.8,1.32]
[1728839409699,0.93484,2458.9,2458.8,1.32]
[1728839410093,0.5281,2458.9,2458.8,1.32]
[1728839410494,0.93484,2458.9,2458.8,1.32]
[1728839411300,0.40673,2459.0,2458.8,1.72675]
[1728839411498,0.94003,2459.0,2458.9,1.32]
[1728839412692,0.5333,2459.0,2458.9,1.32]
[1728839413297,0.94003,2459.0,2458.9,1.32]
[1728839415204,0.5333,2459.0,2458.9,1.32]
[1728839415401,0.5333,2459.0,2458.9,1.72674]
[1728839415802,0.5333,2459.0,2458.9,1.32]
[1728839416404,0.94003,2459.0,2458.9,1.32]
[1728839416907,0.5333,2459.0,2458.9,1.32]
[1728839417600,0.94003,2459.0,2458.9,1.32]
[1728839418192,0.5333,2459.0,2458.9,1.72674]
[1728839419104,2.38599595,2459.2,2459.0,0.40672]
[1728839419105,0.4067,2459.2,2459.0,0.40672]
[1728839419295,0.957,2459.2,2459.1,1.8929]
[1728839419809,0.5503,2459.2,2459.1,1.8929]
[1728839419999,0.95699,2459.2,2459.1,1.8929]
[1728839420201,0.5503,2459.2,2459.1,1.8929]
[1728839420699,0.95699,2459.2,2459.1,1.8929]
[1728839423112,0.5503,2459.2,2459.1,1.8929]
[1728839423408,0.5503,2459.2,2459.1,2.29961]
[1728839424296,0.5503,2459.2,2459.1,1.8929]
[1728839426302,1.61629595,2459.2,2459.1,1.8929]
[1728839428505,2.02298595,2459.2,2459.1,1.8929]
[1728839433015,2.02298595,2459.2,2459.1,2.29961]
[1728839435411,1.61629595,2459.2,2459.1,2.29961]
[1728839435717,1.06599595,2459.2,2459.1,2.29961]
[1728839436608,1.59899392,2459.2,2459.1,2.29961]
[1728839437014,1.06447563,2459.2,2459.1,2.29961]
[1728839437216,1.06447563,2459.3,2459.1,11.4911]
[1728839437419,1.06447563,2459.4,2459.3,0.40668]
[1728839437608,1.06447563,2459.4,2459.3,3.04668]
[1728839437811,1.59899392,2459.5,2459.4,0.40666]
[1728839437812,1.06447563,2459.5,2459.4,0.40666]
[1728839438015,1.06447563,2459.5,2459.4,2.82256]
[1728839438317,1.06447563,2459.5,2459.4,4.69566]
[1728839438715,1.06447563,2459.5,2459.4,6.58346]
[1728839439717,1.47111563,2459.5,2459.4,4.3138]
[1728839439922,2.00563392,2459.5,2459.4,1.8731]
[1728839440217,3.13193392,2459.5,2459.4,1.8731]
[1728839445124,1.59899392,2459.5,2459.4,6.4009]
[1728839445324,1.06497371,2459.6,2459.4,11.30558183]
[1728839445516,1.06497371,2459.6,2459.5,3.46001922]
[1728839445710,2.14889392,2459.8,2459.5,3.46001922]
[1728839445711,1.06497371,2459.8,2459.6,0.40663]
[1728839446012,1.06497371,2459.8,2459.7,1.85374584]
[1728839446214,1.06497371,2459.8,2459.7,5.91934584]
[1728839446614,1.06497371,2459.9,2459.7,5.79221]
[1728839446818,1.06497371,2459.9,2459.8,1.32]
[1728839447029,1.59899392,2459.9,2459.8,1.8645]
[1728839447319,2.00555392,2460.0,2459.8,1.8645]
[1728839447525,2.00555392,2460.0,2459.9,1.32]
[1728839448423,1.59899392,2460.0,2459.9,1.32]
[1728839448825,2.00555392,2460.0,2459.9,1.32]
[1728839449124,1.59899392,2460.0,2459.9,1.32]
[1728839449422,0.40656,2460.0,2459.9,1.32]
[1728839449620,1.4706326,2460.0,2459.9,1.32]
[1728839450213,2.00555392,2460.0,2459.9,1.32]
[1728839450421,0.40656,2460.0,2459.9,1.32]
[1728839450718,1.47046175,2460.0,2459.9,1.32]
[1728839451122,0.40656,2460.0,2459.9,1.32]
[1728839451326,1.47047769,2460.0,2459.9,1.32]
[1728839453016,2.38391769,2460.0,2459.8,1.8645]
[1728839453212,0.98328,2459.9,2459.8,0.5445]
[1728839453419,0.98328,2459.9,2459.8,1.8645]
[1728839453619,0.98328,2459.9,2459.5,0.40663]
[1728839453620,0.40662,2459.7,2459.5,0.40663]
[1728839453918,0.94639,2459.8,2459.7,1.32]
[1728839454131,0.40662,2459.7,2459.5,1.5618]
[1728839454319,0.94702,2459.7,2459.5,1.5618]
[1728839454525,0.5398,2459.8,2459.6,1.32]
[1728839454726,0.5398,2459.8,2459.7,1.32]
[1728839454727,0.94639,2459.8,2459.7,1.32]
[1728839455229,0.40659,2459.8,2459.7,1.32]
[1728839457025,0.40659,2459.8,2459.5,1.8778]
[1728839457026,0.40663,2459.6,2459.5,1.8778]
[1728839459031,1.47054769,2459.6,2459.5,1.8778]
[1728839460442,1.47054769,2459.6,2459.5,1.32]
[1728839461534,1.47054769,2459.6,2459.4,3.2078]
[1728839461535,0.40664,2459.5,2459.4,3.2078]
[1728839461836,2.02955769,2459.5,2459.4,4.5278]
[1728839463140,0.40658,2459.9,2459.4,15.9134]
[1728839463436,0.97483,2460.2,2459.9,0.40657]
[1728839463638,0.97483,2460.2,2459.8,1.32]
[1728839463639,0.97483,2460.2,2460.1,1.32]
[1728839463828,0.97483,2460.2,2460.0,3.9525]
[1728839464233,1.59533257,2460.1,2460.0,4.35906]
[1728839464437,1.59533257,2460.2,2460.0,4.35906]
[1728839464733,1.06342851,2460.1,2460.0,4.35906]
[1728839465042,1.06342851,2460.1,2460.0,3.9525]
[1728839465231,1.59533257,2460.3,2460.0,3.9525]
[1728839465232,1.06342851,2460.2,2460.0,3.9525]
[1728839465541,1.06342851,2460.2,2460.1,2.86]
[1728839465737,1.06331544,2460.2,2460.1,2.86]
[1728839465932,1.46984544,2460.2,2460.1,2.86]
[1728839466142,0.40653,2460.2,2460.1,2.86]
[1728839467238,1.0633239,2460.3,2460.1,2.86]
[1728839467439,0.40653,2460.2,2460.1,2.86]
[1728839467831,1.0633239,2460.3,2460.0,1.0925]
[1728839468032,0.96514,2460.2,2460.0,1.0925]
[1728839468752,0.40654,2460.1,2460.0,1.0925]
[1728839469237,0.40653,2460.2,2460.0,5.1573]
[1728839469436,0.40654,2460.1,2460.0,5.1573]
[1728839469637,0.40654,2460.1,2460.0,1.0925]
[1728839469843,0.40654,2460.1,2460.0,5.1573]
[1728839470248,1.0633239,2460.3,2460.0,5.1573]
[1728839470443,1.0633239,2460.3,2460.1,6.9248]
[1728839470642,4.6776039,2460.5,2460.1,7.4661]
[1728839470838,4.6776039,2460.5,2460.3,0.40651]
[1728839471039,3.2078,2460.5,2460.4,0.52]
[1728839471340,3.2078,2460.5,2460.4,1.1018]
[1728839471536,3.61428,2460.5,2460.4,1.1018]
[1728839472343,3.2078,2460.5,2460.4,1.1018]
[1728839472538,3.2078,2460.5,2460.4,5.57229]
[1728839472744,1.0633239,2460.6,2460.4,5.57229]
[1728839472934,1.4697939,2460.6,2460.4,1.1018]
[1728839473336,0.40648,2460.5,2460.4,1.1018]
[1728839474046,0.40648,2460.5,2460.4,0.5818]
[1728839474246,0.40649,2460.4,2460.3,3.2078]
[1728839474440,1.49029,2460.4,2460.3,3.2078]
[1728839475043,4.14917761,2460.4,2460.3,3.2078]
[1728839476359,3.74268761,2460.4,2460.1,0.5599]
[1728839476661,2.53155617,2460.2,2460.1,0.5599]
[1728839477046,0.40656,2460.0,2459.9,3.4067]
[1728839477248,2.00047662,2460.0,2459.9,3.4067]
[1728839477948,1.59391662,2460.0,2459.9,3.4067]
[1728839478153,1.59391662,2460.0,2459.9,3.81328]
[1728839478154,1.06274499,2460.0,2459.9,3.81328]
[1728839478553,1.59391662,2460.0,2459.9,4.37318]
[1728839478947,1.06280617,2460.0,2459.9,4.37318]
[1728839479451,1.59391662,2460.0,2459.9,4.37318]
[1728839479749,1.59391662,2460.0,2459.9,3.9666]
[1728839480341,2.00047662,2460.0,2459.9,3.4067]
[1728839480547,1.59391662,2460.0,2459.9,3.81328]
[1728839481248,0.40655,2460.1,2459.9,3.4067]
[1728839481449,0.40656,2460.0,2459.9,4.4087]
[1728839482249,0.40656,2460.0,2459.9,3.4067]
[1728839482649,0.40658,2459.9,2459.8,4.2098]
[1728839482850,1.01634,2460.2,2459.8,4.2098]
[1728839482851,2.07942634,2460.2,2459.8,4.2098]
[1728839483053,0.40658,2459.9,2459.8,3.2078]
[1728839483253,0.40658,2459.9,2459.8,4.2098]
[1728839484549,0.40658,2459.9,2459.8,3.2078]
[1728839485352,0.40658,2459.9,2459.8,7.2734]
[1728839486951,0.40658,2459.9,2459.8,3.2078]
[1728839487753,0.40658,2459.9,2459.8,4.5278]
[1728839488858,0.40658,2459.9,2459.8,5.0814]
[1728839491062,0.40658,2459.9,2459.8,1.8736]
[1728839491364,0.40658,2459.9,2459.5,1.14973032]
[1728839491365,0.40663,2459.6,2459.5,1.14973032]
[1728839491561,0.40663,2459.6,2459.5,1.44712542]
[1728839491760,1.44590842,2459.6,2459.5,1.32]
[1728839491955,2.55870842,2459.6,2459.5,1.32]
[1728839493768,2.17757842,2459.6,2459.4,3.7272]
[1728839493963,0.40664,2459.5,2459.4,3.7272]
[1728839494163,0.40664,2459.5,2459.4,3.85433701]
[1728839494955,0.40664,2459.5,2459.4,3.33493701]
[1728839495162,0.40664,2459.5,2459.4,3.2078]
[1728839495854,1.47141842,2459.5,2459.4,3.2078]
[1728839496254,0.40664,2459.5,2459.4,3.2078]
[1728839497166,0.40668,2459.3,2459.2,3.407]
[1728839497364,1.47104728,2459.3,2459.2,3.407]
[1728839498564,1.06436728,2459.3,2459.0,6.47451]
[1728839498864,1.99776728,2459.2,2459.0,6.47451]
[1728839499064,1.59106728,2459.2,2459.0,6.47451]
[1728839500968,1.99775728,2459.2,2459.0,7.47651]
[1728839501269,2.56765728,2459.2,2459.0,7.47651]
[1728839501471,1.59106728,2459.2,2459.1,0.40671]
[1728839502173,0.5267,2459.2,2459.1,0.40671]
[1728839502865,1.99776728,2459.2,2459.0,6.0678]
[1728839504268,0.9334,2459.2,2459.0,6.0678]
[1728839506161,0.5267,2459.2,2459.0,6.47452]
[1728839506566,0.5267,2459.2,2459.0,6.0678]
[1728839506771,0.5267,2459.2,2459.1,0.40671]
[1728839507974,0.5267,2459.2,2459.0,6.0678]
[1728839508169,0.5267,2459.2,2459.1,0.40671]
[1728839508672,0.40669,2459.3,2459.1,0.40671]
[1728839508972,0.40669,2459.3,2459.2,0.4149]
[1728839510368,0.3956,2459.4,2459.0,6.47452]
[1728839510569,0.4067,2459.2,2459.0,6.47452]
[1728839513976,0.4067,2459.2,2459.0,3.26672]
[1728839515877,0.4067,2459.2,2459.1,1.32]
[1728839519572,1.32,2459.3,2458.9,3.7609]
[1728839519777,0.40671,2459.1,2459.0,1.32]
[1728839520383,0.4067,2459.2,2459.0,1.72672]
[1728839520679,0.4067,2459.2,2459.1,1.32]
[1728839522969,1.41227,2459.4,2459.1,1.32]
[1728839523176,0.40669,2459.2,2459.0,0.40672]
[1728839524074,0.40669,2459.2,2459.1,1.32]
[1728839525975,0.81109,2459.2,2459.1,1.32]
[1728839526780,1.7244,2459.2,2459.0,1.32]
[1728839526978,1.7244,2459.2,2458.6,1.671622]
[1728839526979,0.40677,2458.8,2458.6,3.3028]
[1728839527173,0.83598,2458.7,2458.6,5.9194]
[1728839527371,0.4292,2458.7,2458.6,6.32619]
[1728839528288,0.4292,2458.7,2458.6,5.32519]
[1728839530286,1.47111728,2458.9,2458.7,0.40677]
[1728839530475,1.87931728,2458.9,2458.8,1.32]
[1728839530680,0.81495,2458.9,2458.8,1.32]
[1728839531081,0.81495,2458.9,2458.7,0.40677]
[1728839531082,1.87931728,2458.9,2458.6,3.5984]
[1728839531384,1.87931728,2458.9,2458.8,1.32]
[1728839531688,1.47256728,2458.9,2458.8,1.32]
[1728839531884,1.06436728,2458.9,2458.8,1.72676]
[1728839532391,1.06436728,2459.0,2458.8,1.32]
[1728839532587,1.06436728,2459.0,2458.9,1.72674]
[1728839532781,1.06436728,2459.0,2458.9,2.15374]
[1728839534186,1.59655092,2459.0,2458.9,2.15374]
[1728839534384,1.06472771,2459.0,2458.9,2.15374]
[1728839535585,1.06472771,2459.1,2459.0,0.40673]
[1728839535789,1.06472771,2459.1,2459.0,1.72673]
[1728839536090,1.59655092,2459.1,2459.0,1.32]
[1728839536284,1.59655092,2459.1,2459.0,1.72673]
[1728839536789,1.06523623,2459.1,2459.0,1.72673]
[1728839536990,1.59655092,2459.1,2459.0,1.72673]
[1728839540093,2.95361617,2459.2,2459.0,1.32]
[1728839540302,2.95361617,2459.2,2459.1,0.40671]
[1728839542087,0.82859,2459.2,2459.1,0.40671]
[1728839542900,2.96119992,2459.2,2459.1,0.40671]
[1728839543101,0.82859,2459.2,2459.1,0.40671]
[1728839543683,2.96138781,2459.2,2459.1,0.40671]
[1728839544084,0.82859,2459.2,2459.1,0.40671]
[1728839544298,2.96148021,2459.2,2459.1,0.40671]
[1728839544504,2.96148021,2459.2,2459.1,0.53386657]
[1728839547296,2.96148021,2459.2,2459.1,0.12715657]
[1728839547493,2.96148021,2459.2,2459.1,0.53386657]
[1728839548093,4.28148021,2459.2,2459.1,0.53386657]
[1728839548297,4.28148021,2459.2,2459.1,0.12715657]
[1728839548595,0.40671,2459.1,2459.0,1.72672]
[1728839548800,0.40671,2459.1,2459.0,2.36251296]
[1728839548999,3.85960021,2459.1,2459.0,0.12715859]
[1728839549204,4.24480021,2459.1,2459.0,0.12715859]
[1728839549494,4.24480021,2459.1,2459.0,0.63580339]